bitfinex/quotes_SOLUSD_20250518
["timestamp","ask_amount","ask_price","bid_price","bid_amount"]
[1747593677755,68.93822401,170.36,170.31,37.0683015]
[1747593678197,26.0,170.33,170.29,6.3284]
[1747593678390,26.0,170.33,170.26,1.65]
[1747593678391,37.0683015,170.31,170.26,38.7183015]
[1747593678597,5.87164582,170.31,170.27,37.0683015]
[1747593678795,42.93994732,170.31,170.26,1.65]
[1747593679007,63.0683015,170.27,170.19,6.4492]
[1747593679213,37.0683015,170.22,170.17,37.0683015]
[1747593679518,26.0,170.28,170.21,37.0683015]
[1747593679679,37.0683015,170.27,170.22,37.0683015]
[1747593679884,63.0683015,170.28,170.23,37.0683015]
[1747593680397,37.0683015,170.27,170.22,37.0683015]
[1747593680703,37.0683015,170.24,170.16,1.5164]
[1747593680921,37.0683015,170.24,170.19,37.0683015]
[1747593681201,200.44492464,170.25,170.2,37.0683015]
[1747593681376,163.37662314,170.25,170.22,37.0683015]
[1747593681777,163.37662314,170.25,170.21,37.0683015]
[1747593682303,143.25042067,170.25,170.22,37.0683015]
[1747593683003,137.37662314,170.25,170.22,37.0683015]
[1747593683800,143.25066255,170.25,170.22,37.0683015]
[1747593684503,137.37662314,170.25,170.21,5.87508359]
[1747593684707,5.8719906,170.3,170.24,37.0683015]
[1747593684893,143.24817818,170.32,170.29,37.0683015]
[1747593685716,37.0683015,170.36,170.31,37.0683015]
[1747593685916,63.0683015,170.36,170.31,37.0683015]
[1747593686087,31.86992251,170.36,170.32,37.0683015]
[1747593686289,5.86992251,170.36,170.32,37.0683015]
[1747593686494,31.86992251,170.36,170.32,37.0683015]
[1747593686693,37.0683015,170.35,170.27,1.562]
[1747593686906,37.0683015,170.34,170.29,37.0683015]
[1747593687114,37.0683015,170.34,170.27,1.562]
[1747593687408,37.0683015,170.31,170.23,6.6305]
[1747593687710,37.0683015,170.3,170.25,37.0683015]
[1747593687888,37.0683015,170.28,170.23,6.6305]
[1747593688214,37.0683015,170.27,170.23,6.6305]
[1747593688705,5.87337013,170.26,170.23,6.6305]
[1747593688908,40.68016614,170.3,170.23,6.6305]
[1747593689214,37.0683015,170.27,170.23,6.6305]
[1747593689476,137.37662314,170.28,170.19,242.28]
[1747593689587,137.37662314,170.28,170.24,37.0683015]
[1747593689785,137.37662314,170.28,170.26,37.0683015]
[1747593690106,137.37662314,170.28,170.27,37.0683015]
[1747593690290,137.37662314,170.28,170.22,1.17451755]
[1747593690291,137.37662314,170.28,170.26,37.0683015]
[1747593691095,37.0683015,170.27,170.19,248.15573596]
[1747593691321,137.37662314,170.26,170.21,37.0683015]
[1747593691701,137.37662314,170.26,170.24,37.0683015]
[1747593691895,137.37662314,170.26,170.25,37.0683015]
[1747593692724,137.37662314,170.26,170.25,42.94201662]
[1747593693428,206.31617439,170.33,170.25,42.94201662]
[1747593693642,37.0683015,170.31,170.26,37.0683015]
[1747593693795,37.0683015,170.3,170.25,37.0683015]
[1747593694001,37.0683015,170.31,170.24,22.38]
[1747593694205,37.0683015,170.31,170.26,37.0683015]
[1747593694519,37.0683015,170.27,170.22,37.0683015]
[1747593694713,42.94105851,170.28,170.23,37.0683015]
[1747593694930,37.0683015,170.26,170.2,42.94374215]
[1747593695096,37.0683015,170.25,170.19,44.86]
[1747593695301,37.0683015,170.24,170.19,81.9283015]
[1747593695503,37.0683015,170.24,170.19,59.5483015]
[1747593696445,37.0683015,170.23,170.19,22.48]
[1747593696620,37.0683015,170.23,170.17,1.657]
[1747593696621,37.0683015,170.22,170.17,1.657]
[1747593696814,37.0683015,170.22,170.17,38.7253015]
[1747593697016,37.0683015,170.18,170.12,1.6588]
[1747593697230,37.0683015,170.15,170.1,43.5392015]
[1747593697423,63.0683015,170.19,170.1,43.5392015]
[1747593697739,37.0683015,170.15,170.1,43.5392015]
[1747593697942,37.0683015,170.15,170.1,49.41805285]
[1747593698150,37.0683015,170.14,170.1,6.4709]
[1747593698346,37.0683015,170.13,170.08,37.0683015]
[1747593698549,37.0683015,170.13,170.05,28.8309]
[1747593698550,37.0683015,170.1,170.05,43.5392015]
[1747593699606,37.0683015,170.08,170.01,24.0188]
[1747593699810,37.0683015,170.08,170.02,37.0683015]
[1747593700021,37.0683015,170.09,170.03,37.0683015]
[1747593700215,37.0683015,170.08,170.02,37.0683015]
[1747593700528,42.94859348,170.06,170.01,37.0683015]
[1747593700840,37.0683015,170.03,169.98,5.88297456]
[1747593701138,5.88029198,170.06,169.96,6.4709]
[1747593701139,37.0683015,170.0,169.96,6.4709]
[1747593701434,37.0683015,170.01,169.96,37.0683015]
[1747593701641,63.0683015,170.02,169.97,37.0683015]
[1747593701831,63.0683015,170.02,169.96,37.0683015]
[1747593702021,37.0683015,170.01,169.96,37.0683015]
[1747593702611,63.0683015,170.02,169.97,37.0683015]
[1747593702833,5.88124564,170.04,169.99,37.0683015]
[1747593702834,37.0683015,170.03,169.99,37.0683015]
[1747593703534,26.0,170.04,169.99,37.0683015]
[1747593703836,63.0683015,170.04,169.99,37.0683015]
[1747593704217,37.0683015,170.03,169.98,37.0683015]
[1747593704938,159.73662314,170.05,170.01,37.0683015]
[1747593705233,5.87823208,170.12,170.04,37.0683015]
[1747593705415,174.44492464,170.11,170.02,6.0156]
[1747593705618,37.0683015,170.1,170.05,37.0683015]
[1747593705813,137.37662314,170.09,170.08,37.0683015]
[1747593706219,59.4283015,170.15,170.08,37.0683015]
[1747593706421,26.0,170.14,170.1,37.0683015]
[1747593706633,37.0683015,170.13,170.04,44.74]
[1747593706821,37.0683015,170.11,170.04,44.74]
[1747593707039,37.0683015,170.11,170.06,37.0683015]
[1747593707344,137.37662314,170.12,170.1,37.0683015]
[1747593707845,137.37662314,170.12,170.05,5.88062334]
[1747593708018,143.2548452,170.12,170.08,37.0683015]
[1747593708359,180.3231467,170.12,170.07,37.0683015]
[1747593708514,137.37662314,170.11,170.06,37.0683015]
[1747593708829,137.37662314,170.11,170.08,37.0683015]
[1747593709029,137.37662314,170.11,170.07,37.0683015]
[1747593709524,174.44492464,170.11,170.06,37.0683015]
[1747593709748,37.0683015,170.1,170.05,37.0683015]
[1747593710448,37.0683015,170.09,170.02,6.0156]
[1747593710635,37.0683015,170.04,169.97,6.0821]
[1747593710948,37.0683015,170.02,169.95,1.5699]
[1747593711151,37.0683015,170.0,169.95,37.0683015]
[1747593711336,37.0683015,170.0,169.92,6.0821]
[1747593711337,37.0683015,170.01,169.96,37.0683015]
[1747593711543,137.37662314,170.04,169.93,31.88477608]
[1747593711726,174.44492464,170.04,169.95,18.64964886]
[1747593711926,174.44492464,170.04,169.99,37.0683015]
[1747593712232,180.32603926,170.04,169.99,37.0683015]
[1747593712547,174.44492464,170.04,169.99,37.0683015]
[1747593712723,137.37662314,170.04,170.0,37.0683015]
[1747593713750,180.32592946,170.04,169.99,37.0683015]
[1747593714124,37.0683015,170.05,169.95,18.64964886]
[1747593714351,137.37662314,170.08,170.04,37.0683015]
[1747593714852,42.9454687,170.15,170.07,37.0683015]
[1747593715040,42.9454687,170.15,170.1,37.0683015]
[1747593715244,26.0,170.14,170.1,37.0683015]
[1747593715442,42.9454687,170.15,170.1,37.0683015]
[1747593716153,68.94669071,170.12,170.07,37.0683015]
[1747593716358,31.87838921,170.12,170.07,37.0683015]
[1747593716539,68.94669071,170.12,170.07,37.0683015]
[1747593716955,31.87838921,170.12,170.07,37.0683015]
[1747593717135,31.87829727,170.12,170.08,37.0683015]
[1747593717344,37.0683015,170.11,170.06,37.0683015]
[1747593717541,137.37662314,170.1,170.06,37.0683015]
[1747593717846,137.37662314,170.1,170.07,37.0683015]
[1747593718046,137.37662314,170.1,170.09,37.0683015]
[1747593718447,137.37662314,170.1,170.05,29.57182763]
[1747593718753,137.37662314,170.1,170.08,37.0683015]
[1747593719453,137.37662314,170.14,170.09,37.0683015]
[1747593719628,137.37662314,170.14,170.06,19.82545303]
[1747593719629,137.37662314,170.14,170.13,37.0683015]
[1747593719832,167.69924819,170.2,170.13,37.0683015]
[1747593720038,26.0,170.19,170.15,37.0683015]
[1747593720524,68.94422412,170.19,170.14,37.0683015]
[1747593720762,37.0683015,170.18,170.13,37.0683015]
[1747593721055,37.0683015,170.18,170.08,24.52923493]
[1747593721355,37.0683015,170.18,170.13,37.0683015]
[1747593721966,31.87592262,170.19,170.15,37.0683015]
[1747593723260,68.94422412,170.19,170.14,37.0683015]
[1747593723468,42.94422412,170.19,170.14,37.0683015]
[1747593723844,5.87592262,170.19,170.15,37.0683015]
[1747593724343,37.0683015,170.17,170.12,37.0683015]
[1747593724543,26.0,170.17,170.13,37.0683015]
[1747593724761,37.0683015,170.18,170.13,37.0683015]
[1747593724961,137.37662314,170.2,170.17,37.0683015]
[1747593725145,137.37662314,170.2,170.18,37.0683015]
[1747593725461,143.25215802,170.2,170.12,22.38]
[1747593725639,137.37662314,170.19,170.16,37.0683015]
[1747593725840,137.37662314,170.19,170.18,37.0683015]
[1747593726456,137.37662314,170.25,170.18,42.94443265]
[1747593726738,174.44492464,170.3,170.24,37.0683015]
[1747593726943,143.24900421,170.29,170.25,37.0683015]
[1747593727143,26.0,170.28,170.2,1.1746377]
[1747593727347,163.37662314,170.28,170.25,37.0683015]
[1747593727564,137.37662314,170.28,170.26,37.0683015]
[1747593727950,137.37662314,170.28,170.25,37.0683015]
[1747593728553,143.24935663,170.28,170.25,37.0683015]
[1747593728768,143.24935663,170.28,170.24,37.0683015]
[1747593729486,37.0683015,170.27,170.21,1.6598]
[1747593729658,174.44492464,170.26,170.21,37.0683015]
[1747593730173,137.37662314,170.26,170.24,37.0683015]
[1747593730545,143.25009165,170.26,170.22,37.0683015]
[1747593731088,63.0683015,170.23,170.16,43.5748015]
[1747593731269,174.44492464,170.22,170.16,43.5748015]
[1747593731587,37.0683015,170.21,170.16,43.5748015]
[1747593731953,137.37662314,170.22,170.18,37.0683015]
[1747593732162,137.37662314,170.22,170.16,25.15614886]
[1747593732163,137.37662314,170.22,170.2,37.0683015]
[1747593732360,37.0683015,170.24,170.19,37.0683015]
[1747593732561,5.87440521,170.23,170.19,37.0683015]
[1747593733855,137.37662314,170.25,170.19,37.0683015]
[1747593733856,137.37662314,170.25,170.21,37.0683015]
[1747593734185,137.37662314,170.3,170.24,37.0683015]
[1747593734523,37.0683015,170.29,170.24,37.0683015]
[1747593734788,37.0683015,170.28,170.23,37.0683015]
[1747593734995,37.0683015,170.26,170.21,37.0683015]
[1747593735164,37.0683015,170.25,170.2,37.0683015]
[1747593735356,37.0683015,170.24,170.19,37.0683015]
[1747593735677,37.0683015,170.24,170.16,34.087]
[1747593735678,37.0683015,170.26,170.2,37.0683015]
[1747593736577,5.87371512,170.25,170.2,37.0683015]
[1747593736782,137.37662314,170.27,170.23,37.0683015]
[1747593737589,143.24968632,170.27,170.22,37.0683015]
[1747593737789,180.31798782,170.27,170.21,37.0683015]
[1747593738297,37.0683015,170.26,170.21,37.0683015]
[1747593738699,42.94190829,170.26,170.21,37.0683015]
[1747593738880,37.0683015,170.25,170.19,37.0683015]
[1747593739070,143.24969787,170.27,170.21,37.0683015]
[1747593739272,143.24969787,170.27,170.22,37.0683015]
[1747593739471,180.31799937,170.27,170.22,37.0683015]
[1747593739772,143.24969787,170.27,170.22,37.0683015]
[1747593739980,180.31799937,170.27,170.22,37.0683015]
[1747593740602,174.44492464,170.27,170.22,37.0683015]
[1747593740816,137.37662314,170.27,170.23,37.0683015]
[1747593740986,137.37662314,170.27,170.26,37.0683015]
[1747593741188,137.37662314,170.31,170.26,37.0683015]
[1747593741406,137.37662314,170.31,170.29,37.0683015]
[1747593741571,22.22,170.37,170.23,23.3943905]
[1747593741572,137.37662314,170.35,170.3,37.0683015]
[1747593741770,137.37662314,170.35,170.31,37.0683015]
[1747593742016,143.24694327,170.35,170.31,37.0683015]
[1747593742376,137.37662314,170.4,170.33,37.0683015]
[1747593742676,5.86891921,170.39,170.34,37.0683015]
[1747593742886,37.0683015,170.38,170.33,37.0683015]
[1747593743698,37.0683015,170.37,170.29,22.26]
[1747593743903,37.0683015,170.35,170.3,37.0683015]
[1747593744198,37.0683015,170.33,170.28,37.0683015]
[1747593744703,42.93955365,170.33,170.28,37.0683015]
[1747593745772,68.93955365,170.33,170.28,37.0683015]
[1747593746189,26.0,170.3,170.24,44.46]
[1747593746392,37.0683015,170.29,170.22,12.33080337]
[1747593746711,42.94132669,170.27,170.22,43.5244015]
[1747593747205,37.0683015,170.26,170.22,6.4561]
[1747593747384,143.24944942,170.28,170.23,37.0683015]
[1747593747718,143.24944942,170.28,170.24,37.0683015]
[1747593748200,143.24944942,170.28,170.22,12.33081024]
[1747593748407,143.2494127,170.28,170.24,37.0683015]
[1747593751116,180.3177142,170.28,170.22,6.4561]
[1747593751416,180.3177142,170.28,170.23,37.0683015]
[1747593751706,137.37662314,170.28,170.25,37.0683015]
[1747593752088,137.37662314,170.28,170.26,37.0683015]
[1747593752298,137.37662314,170.28,170.27,37.0683015]
[1747593752880,137.37662314,170.28,170.26,37.0683015]
[1747593753080,137.37662314,170.28,170.23,18.64964886]
[1747593753288,137.37662314,170.28,170.27,37.0683015]
[1747593756023,137.37662314,170.28,170.26,37.0683015]
[1747593756522,137.37662314,170.28,170.27,37.0683015]
[1747593757819,137.37662314,170.28,170.27,42.94132669]
[1747593758305,137.37662314,170.35,170.27,80.00962819]
[1747593758498,137.37662314,170.35,170.33,37.0683015]
[1747593758699,137.37662314,170.35,170.32,37.0683015]
[1747593759223,143.24698832,170.35,170.32,37.0683015]
[1747593759423,37.0683015,170.34,170.29,37.0683015]
[1747593759619,137.37662314,170.33,170.3,37.0683015]
[1747593759824,137.37662314,170.33,170.31,37.0683015]
[1747593760919,143.24769384,170.33,170.3,37.0683015]
[1747593761222,137.37662314,170.33,170.31,37.0683015]
[1747593761902,137.37662314,170.33,170.32,37.0683015]
[1747593764923,137.37662314,170.37,170.32,37.0683015]
[1747593765120,137.37662314,170.37,170.28,51.74945945]
[1747593765121,137.37662314,170.37,170.35,37.0683015]
[1747593765624,137.37662314,170.37,170.35,24.34399373]
[1747593766123,137.37662314,170.37,170.36,24.34399373]
[1747593766711,137.37662314,170.37,170.31,1.17399531]
[1747593766922,137.37662314,170.37,170.35,24.34399373]
[1747593768735,137.37662314,170.37,170.3,7.9862]
[1747593768906,137.37662314,170.37,170.33,24.34399373]
[1747593769412,137.37662314,170.37,170.36,24.34399373]
[1747593770112,26.0,170.41,170.36,24.34399373]
[1747593770321,26.0,170.41,170.39,24.34399373]
[1747593770730,137.37662314,170.42,170.4,24.34399373]
[1747593770929,137.37662314,170.42,170.41,24.34399373]
[1747593771435,137.37662314,170.45,170.41,24.34399373]
[1747593771630,137.37662314,170.45,170.42,24.34399373]
[1747593771930,143.24357396,170.45,170.41,24.34399373]
[1747593773638,24.34399373,170.42,170.33,5.87095637]
[1747593773939,24.34399373,170.43,170.39,24.34399373]
[1747593774114,24.34399373,170.43,170.33,5.87095637]
[1747593774115,161.72061687,170.42,170.33,5.87095637]
[1747593774538,161.72061687,170.42,170.37,24.34399373]
[1747593774718,137.37662314,170.41,170.37,24.34399373]
[1747593775139,143.24510229,170.41,170.37,24.34399373]
[1747593777338,143.24510229,170.41,170.34,5.87051454]
[1747593777640,143.24510229,170.41,170.37,24.34399373]
[1747593778143,24.34399373,170.39,170.34,24.34399373]
[1747593778437,187.72061687,170.4,170.35,24.34399373]
[1747593779025,187.72061687,170.4,170.32,27.99127244]
[1747593779026,137.37662314,170.4,170.37,24.34399373]
[1747593780226,137.37662314,170.4,170.38,24.34399373]
[1747593780728,137.37662314,170.4,170.39,24.34399373]
[1747593780919,137.37662314,170.4,170.35,19.82348564]
[1747593780920,137.37662314,170.4,170.35,1.17383678]
[1747593781118,137.37662314,170.4,170.38,24.34399373]
[1747593781616,143.24524258,170.4,170.38,24.34399373]
[1747593781815,167.58923631,170.4,170.33,5.87091242]
[1747593782012,137.37662314,170.39,170.38,24.34399373]
[1747593782239,137.37662314,170.39,170.37,24.34399373]
[1747593782435,137.37662314,170.39,170.35,24.34399373]
[1747593782652,24.34399373,170.36,170.27,6.208]
[1747593782942,24.34399373,170.32,170.27,30.55199373]
[1747593783116,24.34399373,170.33,170.28,24.34399373]
[1747593783315,24.34399373,170.34,170.3,24.34399373]
[1747593783513,31.86957797,170.37,170.31,24.34399373]
[1747593783737,24.34399373,170.36,170.31,24.34399373]
[1747593783951,31.86957797,170.37,170.32,24.34399373]
[1747593784143,56.2135717,170.37,170.32,24.34399373]
[1747593784317,137.37662314,170.38,170.34,24.34399373]
[1747593784523,143.24588517,170.38,170.35,24.34399373]
[1747593784946,143.24598237,170.38,170.34,24.34399373]
[1747593785546,24.34399373,170.37,170.32,24.34399373]
[1747593785730,24.34399373,170.35,170.31,24.34399373]
[1747593786743,5.87061171,170.34,170.31,24.34399373]
[1747593787064,24.34399373,170.36,170.31,24.34399373]
[1747593787232,137.37662314,170.38,170.32,24.34399373]
[1747593787233,30.21370118,170.37,170.32,24.34399373]
[1747593787429,5.86970745,170.37,170.33,24.34399373]
[1747593790352,137.37662314,170.38,170.35,24.34399373]
[1747593790527,137.37662314,170.37,170.34,24.34399373]
[1747593791155,137.37662314,170.37,170.36,24.34399373]
[1747593791330,31.86841392,170.41,170.36,24.34399373]
[1747593791539,31.86841392,170.41,170.37,24.34399373]
[1747593792365,56.21240765,170.41,170.37,24.34399373]
[1747593792532,56.21240765,170.41,170.36,24.34399373]
[1747593792739,56.21240765,170.41,170.37,24.34399373]
[1747593792946,31.86841392,170.41,170.37,24.34399373]
[1747593793147,56.21240765,170.41,170.37,24.34399373]
[1747593793344,143.24415244,170.43,170.39,24.34399373]
[1747593793547,137.37662314,170.43,170.4,24.34399373]
[1747593793734,137.37662314,170.43,170.41,24.34399373]
[1747593793935,137.37662314,170.43,170.4,24.34399373]
[1747593794934,137.37662314,170.43,170.37,5.86954118]
[1747593794935,167.58825927,170.43,170.38,24.34399373]
[1747593795634,24.34399373,170.42,170.37,24.34399373]
[1747593795943,143.24426554,170.43,170.39,24.34399373]
[1747593796254,137.37662314,170.43,170.39,24.34399373]
[1747593796452,137.37662314,170.43,170.4,24.34399373]
[1747593796968,137.37662314,170.43,170.36,12.41237445]
[1747593796969,137.37662314,170.43,170.41,24.34399373]
[1747593797127,137.37662314,170.43,170.4,24.34399373]
[1747593799364,143.24419461,170.43,170.4,24.34399373]
[1747593799665,167.58818834,170.43,170.38,24.34399373]
[1747593800051,143.24419461,170.43,170.39,24.34399373]
[1747593800568,137.37662314,170.43,170.4,24.34399373]
[1747593800936,143.24430819,170.43,170.4,24.34399373]
[1747593801261,143.24430819,170.43,170.39,24.34399373]
[1747593801768,24.34399373,170.42,170.35,1.5536]
[1747593801971,169.24430819,170.43,170.34,24.34399373]
[1747593801972,24.34399373,170.39,170.34,24.34399373]
[1747593802145,50.34399373,170.38,170.33,24.34399373]
[1747593802343,50.34399373,170.38,170.32,6.3074]
[1747593802666,50.34399373,170.38,170.33,24.34399373]
[1747593803062,26.0,170.38,170.33,24.34399373]
[1747593803233,50.34399373,170.38,170.33,24.34399373]
[1747593803856,5.86957797,170.37,170.33,24.34399373]
[1747593804058,5.86957797,170.37,170.3,22.0]
[1747593804059,24.34399373,170.35,170.3,46.34399373]
[1747593804360,24.34399373,170.34,170.29,24.34399373]
[1747593804669,24.34399373,170.36,170.31,24.34399373]
[1747593805170,167.59019484,170.37,170.32,24.34399373]
[1747593805366,137.37662314,170.37,170.33,24.34399373]
[1747593805957,143.24620359,170.37,170.33,24.34399373]
[1747593806162,137.37662314,170.37,170.34,24.34399373]
[1747593806666,161.72061687,170.37,170.29,5.87233542]
[1747593806838,161.72061687,170.37,170.32,24.34399373]
[1747593807775,167.59024985,170.37,170.32,24.34399373]
[1747593808079,137.37662314,170.36,170.31,24.34399373]
[1747593808274,24.34399373,170.33,170.28,24.34399373]
[1747593809871,5.87100667,170.33,170.29,24.34399373]
[1747593810076,24.34399373,170.35,170.3,24.34399373]
[1747593810245,137.37662314,170.36,170.32,24.34399373]
[1747593810569,143.24672816,170.36,170.32,24.34399373]
[1747593811353,143.24672816,170.36,170.27,32.49421563]
[1747593811556,143.24672816,170.36,170.32,24.34399373]
[1747593812659,24.34399373,170.35,170.27,7.9716]
[1747593812853,24.34399373,170.35,170.29,24.34399373]
[1747593813054,161.72061687,170.34,170.29,24.34399373]
[1747593813256,24.34399373,170.33,170.28,24.34399373]
[1747593813753,24.34399373,170.3,170.23,8.0916]
[1747593813964,24.34399373,170.28,170.23,30.89849373]
[1747593814165,137.37662314,170.29,170.25,24.34399373]
[1747593814460,137.37662314,170.29,170.27,24.34399373]
[1747593815073,137.37662314,170.29,170.28,24.34399373]
[1747593816759,137.37662314,170.33,170.28,30.21667402]
[1747593817095,137.37662314,170.33,170.3,24.34399373]
[1747593818866,143.24763865,170.33,170.3,24.34399373]
[1747593820849,137.37662314,170.33,170.3,24.34399373]
[1747593822478,143.24759777,170.33,170.3,24.34399373]
[1747593823055,137.37662314,170.33,170.3,24.34399373]
[1747593823474,137.37662314,170.33,170.32,24.34399373]
[1747593823681,137.37662314,170.33,170.32,15.21748471]
[1747593824565,137.37662314,170.39,170.32,15.21748471]
[1747593824763,137.37662314,170.39,170.38,15.21748471]
[1747593825080,137.37662314,170.39,170.37,15.21748471]
[1747593825267,137.37662314,170.39,170.33,5.87087247]
[1747593825471,137.37662314,170.39,170.36,15.21748471]
[1747593825670,137.37662314,170.39,170.33,5.87087247]
[1747593825671,143.24556655,170.39,170.33,5.87087247]
[1747593825866,167.58431481,170.39,170.35,24.33874826]
[1747593826076,24.33874826,170.38,170.33,24.33874826]
[1747593826387,24.33874826,170.36,170.31,68.11874826]
[1747593826558,161.7153714,170.37,170.32,24.33874826]
[1747593827054,137.37662314,170.37,170.35,24.33874826]
[1747593827780,137.37662314,170.37,170.34,24.33874826]
[1747593828283,143.24627973,170.37,170.34,24.33874826]
[1747593828580,143.24627973,170.37,170.33,24.33874826]
[1747593828976,167.58502799,170.37,170.31,21.9]
[1747593829289,5.87026709,170.35,170.31,24.33874826]
[1747593829466,5.84689023,170.35,170.31,24.3153714]
[1747593831579,5.84689023,170.35,170.32,24.33874826]
[1747593831780,187.7153714,170.37,170.32,24.33874826]
[1747593832115,137.37662314,170.37,170.34,24.33874826]
[1747593832387,137.37662314,170.37,170.35,24.33874826]
[1747593832966,137.37662314,170.37,170.36,24.33874826]
[1747593836000,137.37662314,170.37,170.34,5.87055192]
[1747593836173,137.37662314,170.37,170.36,24.33874826]
[1747593838504,5.86871093,170.4,170.36,24.33874826]
[1747593838796,137.37662314,170.41,170.37,24.33874826]
[1747593838980,143.24493798,170.41,170.37,24.33874826]
[1747593840600,167.58368624,170.41,170.37,24.33874826]
[1747593841502,24.33874826,170.38,170.32,21.9]
[1747593841703,24.33874826,170.37,170.33,24.33874826]
[1747593841895,24.33874826,170.38,170.34,24.33874826]
[1747593842577,5.86888901,170.39,170.34,24.33874826]
[1747593842779,30.20763727,170.39,170.34,24.33874826]
[1747593844097,24.33874826,170.38,170.32,21.9]
[1747593844273,24.33874826,170.37,170.32,24.33874826]
[1747593844906,24.33874826,170.38,170.33,24.33874826]
[1747593845073,56.20763727,170.39,170.34,24.33874826]
[1747593847002,56.20763727,170.39,170.32,5.87127989]
[1747593847195,56.20763727,170.39,170.34,24.33874826]
[1747593847607,137.37662314,170.38,170.34,24.33874826]
[1747593847790,137.37662314,170.38,170.34,15.21622624]
[1747593848300,143.24605727,170.38,170.34,15.21622624]
[1747593848506,158.46228351,170.38,170.33,15.21622624]
[1747593851505,137.37662314,170.38,170.35,15.21622624]
[1747593852078,143.24596046,170.38,170.35,15.21622624]
[1747593852902,143.24596046,170.38,170.34,15.21622624]
[1747593853305,137.37662314,170.38,170.35,15.21622624]
[1747593853689,137.37662314,170.38,170.36,15.21622624]
[1747593854405,137.37662314,170.38,170.35,15.21622624]
[1747593854890,137.37662314,170.38,170.34,5.87046613]
[1747593854891,137.37662314,170.38,170.37,15.21622624]
[1747593856392,5.86784853,170.43,170.37,15.21622624]
[1747593856602,5.86784853,170.43,170.35,6.557]
[1747593856603,5.86784853,170.43,170.39,15.21622624]
[1747593859186,5.86784853,170.43,170.36,1.5319]
[1747593859399,15.21622624,170.42,170.38,15.21622624]
[1747593859907,15.21622624,170.42,170.37,15.21622624]
[1747593861011,5.86820022,170.41,170.37,15.21622624]
[1747593861192,21.08442646,170.41,170.36,15.21622624]
[1747593861400,5.86820022,170.41,170.37,15.21622624]
[1747593862211,5.86820022,170.41,170.38,15.21622624]
[1747593862412,21.08373782,170.43,170.38,15.21622624]
[1747593862594,158.46036096,170.43,170.38,15.21622624]
[1747593863611,15.21622624,170.42,170.37,15.21622624]
[1747593863814,15.21622624,170.41,170.36,15.21622624]
[1747593863998,15.21622624,170.38,170.32,1.5319]
[1747593864205,15.21622624,170.37,170.32,16.74812624]
[1747593864493,21.08605529,170.37,170.32,16.74812624]
[1747593864813,5.86982905,170.37,170.34,15.21622624]
[1747593865316,5.86982905,170.37,170.33,15.21622624]
[1747593865695,21.08605529,170.37,170.31,6.2721]
[1747593865899,152.59284938,170.36,170.31,15.21622624]
[1747593866106,152.59284938,170.36,170.29,5.87233388]
[1747593866291,152.59284938,170.36,170.31,15.21622624]
[1747593866613,5.87026709,170.35,170.31,15.21622624]
[1747593866797,21.08649333,170.35,170.3,15.21622624]
[1747593867620,137.37662314,170.36,170.32,15.21622624]
[1747593867820,137.37662314,170.36,170.34,15.21622624]
[1747593868007,137.37662314,170.36,170.35,15.21622624]
[1747593869306,137.37662314,170.41,170.35,15.21622624]
[1747593869510,137.37662314,170.4,170.37,15.21622624]
[1747593869724,143.24524598,170.4,170.33,5.87095637]
[1747593870025,143.24524598,170.4,170.37,15.21622624]
[1747593870227,158.46147222,170.4,170.35,15.21622624]
[1747593870426,15.21622624,170.39,170.35,15.21622624]
[1747593871519,5.86923347,170.38,170.35,15.21622624]
[1747593872995,5.86888901,170.39,170.34,15.21622624]
[1747593873196,21.08511525,170.39,170.34,15.21622624]
[1747593873632,15.21622624,170.37,170.32,15.21622624]
[1747593874004,137.37662314,170.38,170.32,15.21622624]
[1747593874212,15.21622624,170.37,170.32,15.21622624]
[1747593874725,137.37662314,170.38,170.35,15.21622624]
[1747593874927,137.37662314,170.38,170.36,15.21622624]
[1747593875102,137.37662314,170.38,170.37,15.21622624]
[1747593877030,137.37662314,170.38,170.37,21.08580421]
[1747593877210,137.37662314,170.38,170.37,15.21622624]
[1747593879001,137.37662314,170.38,170.36,7.4732389]
[1747593879229,137.37662314,170.38,170.37,15.21622624]
[1747593880435,5.86823972,170.41,170.37,15.21622624]
[1747593880732,21.08446596,170.41,170.37,15.21622624]
[1747593880944,152.59284938,170.4,170.35,21.87742624]
[1747593881111,158.4616285,170.4,170.35,15.21622624]
[1747593881739,15.21622624,170.38,170.33,36.99622624]
[1747593881914,15.21622624,170.38,170.33,15.21622624]
[1747593882737,15.21622624,170.38,170.32,1.6627]
[1747593882738,15.21622624,170.37,170.32,15.21622624]
[1747593883344,5.86992251,170.36,170.32,15.21622624]
[1747593886421,4.05609207,170.44,170.36,20.28374886]
[1747593886750,4.05609207,170.44,170.43,15.21622624]
[1747593887809,137.37662314,170.48,170.43,15.21622624]
[1747593888009,26.0,170.49,170.46,15.21622624]
[1747593888552,15.21622624,170.47,170.4,6.4358]
[1747593888717,15.21622624,170.47,170.42,15.21622624]
[1747593889520,5.86647893,170.46,170.42,15.21622624]
[1747593889834,5.86647893,170.46,170.33,5.8708626]
[1747593889835,50.32733616,170.43,170.33,5.8708626]
[1747593890010,24.32733616,170.41,170.36,24.32733616]